fUSD/lending_fUSD_20260402
["ID","MTS","AMOUNT","RATE_DAILY","PERIOD"]
[419295166,1775123445347,-150.0,0.0001515,2]
[419295167,1775123445356,-389.0,0.00015158,2]
[419295168,1775123445367,-150.0,0.00015163,2]
[419295169,1775123445376,-150.0,0.00015165,2]
[419295170,1775123445386,-500.0,0.00015169,2]
[419295171,1775123445396,-151.0,0.00015169,2]
[419295172,1775123445411,-150.0,0.0001517,2]
[419295173,1775123445421,-150.0,0.00015177,2]
[419295174,1775123445430,-150.0,0.0001518,2]
[419295175,1775123445439,-150.0,0.00015189,2]
[419295176,1775123445449,-150.0,0.00015189,2]
[419295177,1775123445459,-350.0,0.000152,2]
[419295178,1775123445468,-150.0,0.00015203,2]
[419295179,1775123445478,-150.0,0.00015207,2]
[419295180,1775123445487,-785.32,0.0001521,2]
[419295182,1775123445496,-2392.02,0.00015211,2]
[419295183,1775123445507,-10975.52638125,0.00015212,2]
[419295184,1775123445517,-150.0,0.00015217,2]
[419295185,1775123445529,-150.0,0.00015221,2]
[419295186,1775123445540,-150.0,0.00015224,2]
[419295187,1775123445550,-500.0,0.00015224,2]
[419295188,1775123445560,-151.0,0.00015224,2]
[419295189,1775123445571,-150.0,0.00015228,2]
[419295190,1775123445582,-150.0,0.00015232,2]
[419295191,1775123445591,-150.0,0.00015242,2]
[419295192,1775123445601,-1680.0,0.00015248,2]
[419295194,1775123445611,-426.34429273,0.00015253,2]
[419295195,1775123445621,-150.0,0.00015255,2]
[419295196,1775123445631,-150.0,0.00015255,2]
[419295197,1775123445642,-150.0,0.00015268,2]
[419295198,1775123445653,-211.4,0.00015269,2]
[419295199,1775123445663,-211.4,0.00015269,2]
[419295200,1775123445675,-211.4,0.00015269,2]
[419295201,1775123445685,-150.0,0.0001527,2]
[419295202,1775123445694,-150.0,0.00015272,2]
[419295203,1775123445704,-500.0,0.00015279,2]
[419295204,1775123445713,-151.0,0.00015279,2]
[419295205,1775123445724,-150.0,0.0001528,2]
[419295206,1775123445735,-150.0,0.00015288,2]
[419295207,1775123445747,-150.0,0.00015292,2]
[419295208,1775123445758,-150.0,0.00015301,2]
[419295209,1775123445768,-150.0,0.00015307,2]
[419295210,1775123445778,-578.64657728,0.0001531,2]
[419295211,1775123445789,-578.64657728,0.0001531,2]
[419295212,1775123445799,-289.32328864,0.0001531,2]
[419295213,1775123445810,-150.0,0.00015317,2]
[419295214,1775123445820,-150.0,0.00015319,2]
[419295215,1775123445831,-500.0,0.00015321,2]
[419295216,1775123445841,-1000.0,0.00015321,2]
[419295217,1775123445851,-1000.0,0.00015321,2]
[419295218,1775123445860,-1000.0,0.00015321,2]
[419295219,1775123445872,-261.17324766,0.00015321,2]
[419295220,1775123445882,-224.28659877,0.00015321,2]
[419295221,1775123445891,-1000.0,0.00015321,2]
[419295222,1775123445900,-1000.0,0.00015321,2]
[419295223,1775123445911,-1000.0,0.00015321,2]
[419295224,1775123445921,-509.88873086,0.00015321,2]
[419295225,1775123445932,-500.0,0.00015321,2]
[419295226,1775123445942,-1000.0,0.00015321,2]
[419295227,1775123445952,-1000.0,0.00015321,2]
[419295228,1775123445963,-1000.0,0.00015321,2]
[419295229,1775123445972,-935.81,0.00015321,2]
[419295230,1775123445983,-153.553062,0.00015321,2]
[419295231,1775123445994,-153.553062,0.00015321,2]
[419295232,1775123446004,-153.553062,0.00015321,2]
[419295233,1775123446014,-153.553062,0.00015321,2]
[419295234,1775123446024,-151.0,0.00015321,2]
[419295235,1775123446034,-151.0,0.00015321,2]
[419295236,1775123446043,-202.203853,0.00015321,2]
[419295237,1775123446053,-151.0,0.00015321,2]
[419295238,1775123446062,-151.0,0.00015321,2]
[419295239,1775123446072,-151.0,0.00015321,2]
[419295240,1775123446081,-150.0,0.00015323,2]
[419295241,1775123446091,-350.0,0.00015325,2]
[419295242,1775123446100,-150.0,0.0001533,2]
[419295243,1775123446110,-197.11348968,0.00015331,2]
[419295244,1775123446121,-500.0,0.00015334,2]
[419295245,1775123446131,-151.0,0.00015334,2]
[419295246,1775123446141,-230.47418097,0.0001534,2]
[419295247,1775123446151,-214.37120962,0.00015344,2]
[419295248,1775123446161,-181.61045662,0.00015346,2]
[419295249,1775123446170,-150.0,0.00015347,2]
[419295250,1775123446180,-150.0,0.0001535,2]
[419295251,1775123446191,-159.13,0.00015356,2]
[419295252,1775123446202,-150.0,0.00015357,2]
[419295253,1775123446211,-2809.0,0.00015363,2]
[419295254,1775123446221,-151.0,0.00015363,2]
[419295255,1775123446232,-150.0,0.00015363,2]
[419295256,1775123446244,-350.0,0.00015365,2]
[419295257,1775123446254,-150.0,0.00015368,2]
[419295258,1775123446265,-150.0,0.00015369,2]
[419295259,1775123446274,-5888.0,0.00015372,2]
[419295260,1775123446284,-150.0,0.00015374,2]
[419295261,1775123446295,-150.0,0.00015386,2]
[419295262,1775123446305,-150.0,0.00015386,2]
[419295263,1775123446315,-150.0,0.00015386,2]
[419295264,1775123446327,-500.0,0.00015389,2]
[419295265,1775123446338,-151.0,0.00015389,2]
[419295266,1775123446349,-159.13,0.0001539,2]
[419295267,1775123446360,-150.0,0.00015396,2]
[419295268,1775123446370,-150.0,0.00015405,2]
[419295269,1775123446379,-150.0,0.0001541,2]
[419295270,1775123446388,-255.0,0.00015417,2]
[419295271,1775123446398,-151.0,0.0001542,2]
[419295272,1775123446407,-151.0,0.0001542,2]
[419295273,1775123446416,-181.321456,0.0001542,2]
[419295274,1775123446426,-500.0,0.00015422,2]
[419295275,1775123446436,-4036.0,0.00015423,2]
[419295276,1775123446447,-150.0,0.00015424,2]
[419295277,1775123446457,-150.0,0.00015426,2]
[419295278,1775123446467,-150.0,0.00015434,2]
[419295279,1775123446478,-150.0,0.00015438,2]
[419295280,1775123446487,-903.14,0.00015442,2]
[419295281,1775123446496,-150.0,0.00015443,2]
[419295282,1775123446506,-500.0,0.00015444,2]
[419295283,1775123446515,-151.0,0.00015444,2]
[419295284,1775123446524,-150.0,0.00015456,2]
[419295285,1775123446534,-150.0,0.00015465,2]
[419295286,1775123446543,-150.0,0.00015473,2]
[419295287,1775123446552,-150.0,0.00015475,2]
[419295289,1775123446561,-150.82,0.00015479,2]
[419295291,1775123446570,-150.0,0.0001548,2]
[419295292,1775123446579,-785.32,0.00015484,2]
[419295293,1775123446588,-150.0,0.00015485,2]
[419295294,1775123446597,-150.0,0.00015494,2]
[419295295,1775123446606,-500.0,0.00015499,2]
[419295296,1775123446615,-151.0,0.00015499,2]
[419295297,1775123446624,-150.0,0.00015502,2]
[419295298,1775123446633,-150.0,0.00015505,2]
[419295299,1775123446642,-150.0,0.00015506,2]
[419295300,1775123446652,-2606.93,0.00015507,2]
[419295301,1775123446661,-150.0,0.00015511,2]
[419295302,1775123446670,-150.0,0.00015518,2]
[419295303,1775123446679,-150.0,0.00015518,2]
[419295304,1775123446688,-150.0,0.00015526,2]
[419295305,1775123446698,-150.0,0.00015544,2]
[419295306,1775123446708,-150.0,0.00015549,2]
[419295307,1775123446717,-150.0,0.0001555,2]
[419295308,1775123446727,-209.77634038,0.00015554,2]
[419295309,1775123447586,-290.22365962,0.00015554,2]
[419295310,1775123447597,-151.0,0.00015554,2]
[419295311,1775123447608,-4.55975446,0.00015555,2]
[419295312,1775123447623,-145.44024554,0.00015555,2]
[419295313,1775123447633,-500.0,0.00015568,2]
[419295314,1775123447644,-150.0,0.00015575,2]
[419295315,1775123447655,-106.04674348,0.00015577,2]
[419295316,1775123447714,-43.95325652,0.00015577,2]
[419295317,1775123447723,-150.0,0.00015584,2]
[419295318,1775123447733,-150.0,0.00015584,2]
[419295319,1775123447743,-150.0,0.00015588,2]
[419295320,1775123447753,-150.0,0.00015593,2]
[419295321,1775123447763,-935.81,0.00015595,2]
[419295322,1775123447774,-150.0,0.00015595,2]
[419295323,1775123447785,-500.0,0.00015598,2]
[419295324,1775123447795,-588.72367056,0.000156,2]
[419295325,1775123447818,-1788.27632944,0.000156,2]
[419295326,1775123447829,-1054.12909596,0.00015603,2]
[419295327,1775123447840,-1299.72190404,0.00015603,2]
[419295328,1775123447850,-197.196,0.00015603,2]
[419295329,1775123447859,-200.0,0.00015607,2]
[419295330,1775123447870,-181.08010149,0.00015607,2]
[419295331,1775123447879,-200.0,0.00015607,2]
[419295332,1775123447889,-771.01748645,0.00015607,2]
[419295333,1775123447900,-176.69212489,0.00015607,2]
[419295334,1775123447909,-500.0,0.00015609,2]
[419295335,1775123447919,-151.0,0.00015609,2]
[419295336,1775123447929,-350.0,0.00015611,2]
[419295337,1775123447939,-150.0,0.00015623,2]
[419295338,1775123447950,-350.0,0.00015626,2]
[419295339,1775123447959,-150.0,0.00015627,2]
[419295340,1775123447969,-150.0,0.00015628,2]
[419295341,1775123447979,-150.0,0.00015631,2]
[419295342,1775123447989,-150.0,0.00015637,2]
[419295343,1775123447998,-150.0,0.00015642,2]
[419295344,1775123448008,-150.0,0.00015644,2]
[419295345,1775123448018,-9221.26883546,0.0001565,2]
[419295346,1775123448027,-577.911486,0.0001565,2]
[419295347,1775123448037,-577.911486,0.0001565,2]
[419295348,1775123448046,-390.271324,0.0001565,2]
[419295349,1775123448055,-577.911486,0.0001565,2]
[419295350,1775123448067,-390.271324,0.0001565,2]
[419295351,1775123448077,-577.911486,0.0001565,2]
[419295352,1775123448087,-390.271324,0.0001565,2]
[419295353,1775123448097,-390.271324,0.0001565,2]
[419295354,1775123448106,-150.0,0.00015662,2]
[419295355,1775123448116,-150.0,0.00015665,2]
[419295356,1775123448126,-150.0,0.00015668,2]
[419295357,1775123448136,-500.0,0.00015668,2]
[419295358,1775123448145,-647.88588496,0.00015668,2]
[419295359,1775123448155,-502.07394156,0.00015668,2]
[419295360,1775123448164,-1500.0,0.00015668,2]
[419295361,1775123448173,-150.0,0.00015679,2]
[419295362,1775123448182,-228.58372375,0.00015679,2]
[419295363,1775123448192,-3223.58832831,0.0001568,2]
[419295364,1775123448202,-150.0,0.00015682,2]
[419295365,1775123448212,-150.0,0.00015688,2]
[419295366,1775123448221,-2000.0,0.000157,2]
[419295367,1775123448231,-150.0,0.00015702,2]
[419295368,1775123448240,-150.0,0.00015704,2]
[419295369,1775123448250,-150.0,0.00015706,2]
[419295370,1775123448259,-150.0,0.00015712,2]
[419295371,1775123448269,-150.0,0.0001573,2]
[419295372,1775123448278,-150.0,0.00015734,2]
[419295373,1775123448287,-2000.0,0.0001574,2]
[419295374,1775123448297,-2000.0,0.0001574,2]
[419295375,1775123448306,-2000.0,0.0001574,2]
[419295376,1775123448316,-150.0,0.00015741,2]
[419295377,1775123448325,-150.0,0.00015742,2]
[419295378,1775123448335,-150.0,0.00015743,2]
[419295379,1775123448344,-163.0,0.00015753,2]
[419295380,1775123448354,-324.0,0.00015753,2]
[419295381,1775123448547,-3866.0,0.00015753,2]
[419295382,1775123448557,-786.94,0.00015758,2]
[419295383,1775123448567,-2911.0,0.00015766,5]
[419295384,1775123448576,-2918.0,0.00015766,5]
[419295385,1775123448585,-270.86379402,0.00015781,2]
[419295386,1775123448595,-280.49316335,0.00015781,2]
[419295387,1775123448604,-255.51044828,0.00015781,2]
[419295388,1775123448613,-150.29283805,0.00015781,2]
[419295389,1775123448622,-294.81579188,0.00015781,2]
[419295390,1775123448631,-152.65875364,0.00015781,2]
[419295391,1775123448641,-150.0,0.00015781,2]
[419295392,1775123448650,-163.6484935,0.00015781,2]
[419295393,1775123448659,-163.77123243,0.00015781,2]
[419295394,1775123448668,-186.47305858,0.00015781,2]
[419295395,1775123448678,-150.08692897,0.00015781,2]
[419295396,1775123448687,-241.16678463,0.00015781,2]
[419295397,1775123448696,-500.0,0.00015792,2]
[419295398,1775123448705,-500.0,0.00015792,2]
[419295399,1775123448715,-500.0,0.00015792,2]
[419295400,1775123448724,-500.0,0.00015792,2]
[419295401,1775123448734,-572.92,0.00015792,2]
[419295402,1775123448743,-32135.8163213,0.00015793,2]
[419295403,1775123448752,-6872.6834865,0.00015793,2]
[419295404,1775123448762,-7045.80211711,0.00015793,2]
[419295405,1775123449453,-664.2,0.00015793,2]
[419295406,1775123449469,-25454.86008501,0.00015793,2]
[419295407,1775123449482,-255.60486348,0.00015793,2]
[419295408,1775123449604,-397.07623363,0.00015793,2]
[419295409,1775123450734,-8751.67449996,0.00015793,2]
[419295410,1775123450758,-4670.60698737,0.00015793,2]
[419295411,1775123450769,-9684.12054725,0.00015793,2]
[419295412,1775123450991,-29835.46662168,0.00015793,2]
[419295420,1775123905037,154.66,6.826e-05,2]
[419295421,1775123905188,154.66,7.964e-05,2]
[419295429,1775124277534,351.09,7.716e-05,2]
[419295431,1775124339405,266.44,7.486e-05,2]
[419295432,1775124339930,438.75,8.141e-05,2]
[419295463,1775124610201,50199.78143675,9.5e-05,3]
[419295464,1775124610230,30650.39974277,9.5e-05,3]
[419295468,1775124631956,-630.0,8.805e-05,2]
[419295469,1775124631967,-276.0,8.805e-05,2]
[419295470,1775124631977,-154.66,9.101e-05,2]
[419295471,1775124631987,-1944.6139241,0.0001,2]
[419295472,1775124631997,-777.16139027,0.0001,2]
[419295473,1775124632007,-154.66,0.00010239,2]
[419295474,1775124632017,-407.0,0.000105,5]
[419295475,1775124632026,-154.66,0.00011377,2]
[419295476,1775124632036,-170.5,0.00011813,2]
[419295477,1775124632047,-187.31,0.00011851,2]
[419295478,1775124632056,-193.4215227,0.00012297,2]
[419295479,1775124632066,-154.66,0.00012514,2]
[419295480,1775124632076,-250.0,0.00013,2]
[419295481,1775124632086,-500.0,0.00013089,2]
[419295482,1775124632096,-200.0,0.00013189,2]
[419295483,1775124632106,-2032.1,0.00013211,2]
[419295484,1775124632117,-154.66,0.00013652,2]
[419295485,1775124632127,-1200.0,0.00013698,2]
[419295486,1775124632137,-166.66,0.00013699,2]
[419295487,1775124632147,-200.0,0.00013699,2]
[419295488,1775124632157,-150.0,0.000137,2]
[419295489,1775124632168,-300.0,0.00013799,2]
[419295490,1775124632178,-2800.0,0.000138,5]
[419295491,1775124632189,-166.66,0.00013836,2]
[419295492,1775124632199,-43100.57166857,0.00013894,2]
[419295511,1775124637996,-500.0,0.00013893,2]
[419295512,1775124638008,-222.12917405,0.00013893,2]
[419295513,1775124638018,-284.15485271,0.00013893,2]
[419295514,1775124638028,-332.6769499,0.00013893,2]
[419295515,1775124638037,-500.0,0.00013893,2]
[419295516,1775124638048,-500.0,0.00013893,2]
[419295517,1775124638057,-500.0,0.00013893,2]
[419295518,1775124638066,-500.0,0.00013893,2]
[419295519,1775124638075,-500.0,0.00013893,2]
[419295520,1775124638084,-500.0,0.00013893,2]
[419295521,1775124638095,-500.0,0.00013893,2]
[419295522,1775124638104,-500.0,0.00013893,2]
[419295523,1775124638114,-1039991.94796708,0.00013894,2]
[419295524,1775124638130,-1000.0,0.00013894,2]
[419295560,1775124643399,-615590.49356435,0.00013894,2]
[419295561,1775124643408,-362.0,0.00013894,2]
[419295562,1775124643419,-5600.0,0.000139,5]
[419295563,1775124643429,-166.66,0.00013973,2]
[419295564,1775124643439,-150.0,0.00013984,2]
[419295565,1775124643449,-200.0,0.00013985,2]
[419295566,1775124643459,-500.0,0.00013985,2]
[419295567,1775124643469,-500.0,0.00013985,2]
[419295568,1775124643480,-500.0,0.00013985,2]
[419295569,1775124643490,-151.0,0.00013985,2]
[419295570,1775124643500,-500.0,0.00013985,2]
[419295571,1775124643511,-153.43679859,0.00013985,2]
[419295572,1775124643520,-500.0,0.00013985,2]
[419295573,1775124643530,-500.0,0.00013985,2]
[419295574,1775124643540,-500.0,0.00013985,2]
[419295575,1775124643550,-500.0,0.00013985,2]
[419295576,1775124643560,-500.0,0.00013985,2]
[419295577,1775124643571,-500.0,0.00013985,2]
[419295578,1775124643583,-493.51314513,0.00013985,2]
[419295580,1775124643592,-151.0,0.00013985,2]
[419295581,1775124643602,-151.0,0.00013985,2]
[419295583,1775124643613,-151.0,0.00013985,2]
[419295586,1775124643623,-151.0,0.00013985,2]
[419295588,1775124643633,-151.0,0.00013985,2]
[419295589,1775124643643,-161.48563697,0.00013985,2]
[419295590,1775124643653,-4527.91,0.00013994,2]
[419295591,1775124643662,-166.66,0.0001411,2]
[419295592,1775124643672,-150.0,0.000142,2]
[419295593,1775124643681,-500.0,0.00014215,2]
[419295594,1775124643691,-198.42239388,0.00014215,2]
[419295596,1775124643700,-250.707,0.00014227,2]
[419295598,1775124643710,-166.66,0.00014247,2]
[419295600,1775124643720,-153.37386469,0.00014284,2]
[419295601,1775124643730,-150.0,0.00014327,2]
[419295602,1775124643739,-150.38719726,0.00014327,2]
[419295603,1775124643749,-1600.0,0.00014345,2]
[419295604,1775124643759,-2000.0,0.00014345,2]
[419295605,1775124643768,-443.17780128,0.00014355,2]
[419295606,1775124643778,-25771.10182965,0.00014355,2]
[419295607,1775124643787,-853.21932307,0.00014355,2]
[419295608,1775124643797,-468.27579115,0.00014355,2]
[419295609,1775124643806,-500.44803489,0.00014373,2]
[419295610,1775124643816,-500.0,0.00014373,2]
[419295611,1775124643829,-500.0,0.00014373,2]
[419295613,1775124643840,-500.0,0.00014373,2]
[419295615,1775124643849,-500.0,0.00014373,2]
[419295617,1775124643859,-500.0,0.00014373,2]
[419295619,1775124643869,-500.0,0.00014373,2]
[419295621,1775124643879,-502.48397435,0.00014373,2]
[419295623,1775124643888,-159.91138824,0.00014373,2]
[419295625,1775124643898,-165.99284076,0.00014373,2]
[419295627,1775124643907,-164.98377626,0.00014373,2]
[419295629,1775124643917,-500.0,0.00014373,2]
[419295631,1775124643926,-164.35655208,0.00014373,2]
[419295632,1775124643936,-166.66,0.00014384,2]
[419295633,1775124643945,-150.0,0.000144,2]
[419295634,1775124643954,-150.17792809,0.000144,2]
[419295635,1775124643964,-150.0,0.000144,2]
[419295636,1775124643974,-150.0,0.000144,2]
[419295637,1775124643983,-150.0,0.000144,2]
[419295638,1775124643992,-150.0,0.000144,2]
[419295639,1775124644002,-150.0,0.000144,2]
[419295640,1775124644012,-150.0,0.000144,2]
[419295641,1775124644021,-150.0,0.000144,2]
[419295642,1775124644031,-150.0,0.000144,2]
[419295643,1775124644041,-150.0,0.000144,2]
[419295644,1775124644050,-150.0,0.000144,2]
[419295645,1775124644060,-150.0,0.000144,2]
[419295646,1775124644069,-422.59477887,0.00014411,2]
[419295647,1775124644080,-151.0,0.00014418,2]
[419295648,1775124644090,-666.0,0.0001442,2]
[419295649,1775124644100,-508.65862639,0.0001442,2]
[419295650,1775124644109,-500.0,0.0001442,2]
[419295651,1775124644118,-500.0,0.0001442,2]
[419295652,1775124644128,-500.0,0.0001442,2]
[419295653,1775124644137,-500.0,0.0001442,2]
[419295654,1775124644146,-500.0,0.0001442,2]
[419295655,1775124644156,-500.0,0.0001442,2]
[419295656,1775124644165,-500.0,0.0001442,2]
[419295657,1775124644175,-500.0,0.0001442,2]
[419295658,1775124644184,-500.0,0.0001442,2]
[419295659,1775124644194,-500.0,0.0001442,2]
[419295660,1775124644203,-500.0,0.0001442,2]
[419295661,1775124644212,-500.0,0.0001442,2]
[419295662,1775124644221,-500.0,0.0001442,2]
[419295663,1775124644230,-500.0,0.0001442,2]
[419295664,1775124644239,-500.0,0.0001442,2]
[419295665,1775124644248,-500.0,0.0001442,2]
[419295666,1775124644257,-262.05217327,0.0001442,2]
[419295667,1775124644266,-500.0,0.0001442,2]
[419295668,1775124644276,-500.0,0.0001442,2]
[419295669,1775124644285,-500.0,0.0001442,2]
[419295670,1775124644294,-500.0,0.0001442,2]
[419295671,1775124644304,-500.0,0.0001442,2]
[419295672,1775124644313,-500.0,0.0001442,2]
[419295673,1775124644326,-500.0,0.0001442,2]
[419295674,1775124644335,-500.0,0.0001442,2]
[419295675,1775124644345,-500.0,0.0001442,2]
[419295676,1775124644355,-500.0,0.0001442,2]
[419295677,1775124644364,-500.0,0.0001442,2]
[419295678,1775124644373,-500.0,0.0001442,2]
[419295679,1775124644383,-500.0,0.0001442,2]
[419295680,1775124644392,-500.0,0.0001442,2]
[419295681,1775124644591,-500.0,0.0001442,2]
[419295682,1775124644610,-500.0,0.0001442,2]
[419295683,1775124644619,-509.91183271,0.0001442,2]
[419295684,1775124644629,-500.0,0.0001442,2]
[419295685,1775124644638,-500.0,0.0001442,2]
[419295686,1775124644647,-500.0,0.0001442,2]
[419295687,1775124644658,-500.0,0.0001442,2]
[419295688,1775124644667,-500.0,0.0001442,2]
[419295689,1775124644676,-500.0,0.0001442,2]
[419295690,1775124644685,-500.0,0.0001442,2]
[419295691,1775124644695,-500.0,0.0001442,2]
[419295692,1775124644703,-500.0,0.0001442,2]
[419295693,1775124644712,-500.0,0.0001442,2]
[419295694,1775124644721,-500.0,0.0001442,2]
[419295695,1775124644730,-500.0,0.0001442,2]
[419295696,1775124644739,-500.0,0.0001442,2]
[419295697,1775124644748,-500.0,0.0001442,2]
[419295698,1775124644757,-500.0,0.0001442,2]
[419295699,1775124644767,-500.0,0.0001442,2]
[419295700,1775124644776,-500.0,0.0001442,2]
[419295701,1775124644786,-500.0,0.0001442,2]
[419295702,1775124644795,-500.0,0.0001442,2]
[419295703,1775124644804,-500.0,0.0001442,2]
[419295704,1775124644813,-506.48015302,0.0001442,2]
[419295705,1775124644825,-549.05,0.0001442,2]
[419295706,1775124644835,-549.05,0.0001442,2]
[419295707,1775124644844,-549.05,0.0001442,2]
[419295708,1775124644853,-549.05,0.0001442,2]
[419295709,1775124644862,-549.05,0.0001442,2]
[419295710,1775124644871,-500.0,0.0001442,2]
[419295711,1775124644881,-500.0,0.0001442,2]
[419295712,1775124644890,-500.0,0.0001442,2]
[419295713,1775124644900,-500.0,0.0001442,2]
[419295714,1775124644910,-500.0,0.0001442,2]
[419295715,1775124644920,-1000.0,0.00014421,2]
[419295716,1775124644930,-1280018.0736,0.00014421,2]
[419295717,1775124644940,-150.0,0.00014455,2]
[419295718,1775124644954,-150.0,0.00014455,2]
[419295719,1775124644965,-150.0,0.00014457,2]
[419295720,1775124644975,-150.0,0.00014464,2]
[419295721,1775124644984,-500.0,0.00014472,2]
[419295722,1775124644994,-359.66331739,0.00014473,2]
[419295723,1775124645003,-500.0,0.00014473,2]
[419295724,1775124645013,-500.0,0.00014473,2]
[419295725,1775124645023,-500.48771159,0.00014473,2]
[419295726,1775124645032,-163.53544722,0.00014473,2]
[419295727,1775124645042,-500.0,0.00014473,2]
[419295728,1775124645052,-500.0,0.00014473,2]
[419295729,1775124645061,-500.48315369,0.00014473,2]
[419295730,1775124645070,-500.48745238,0.00014473,2]
[419295731,1775124645081,-337.66380378,0.00014473,2]
[419295732,1775124645091,-500.0,0.00014473,2]
[419295733,1775124645101,-501.30239513,0.00014473,2]
[419295734,1775124645111,-500.0,0.00014473,2]
[419295735,1775124645120,-500.0,0.00014473,2]
[419295736,1775124645130,-500.0,0.00014473,2]
[419295737,1775124645139,-502.22201414,0.00014473,2]
[419295738,1775124645149,-501.37276755,0.00014473,2]
[419295739,1775124645158,-500.0,0.00014473,2]
[419295740,1775124645167,-561.18350506,0.00014473,2]
[419295741,1775124645177,-500.0,0.00014473,2]
[419295742,1775124645187,-500.0,0.00014473,2]
[419295743,1775124645197,-500.0,0.00014473,2]
[419295744,1775124645207,-500.86988317,0.00014473,2]
[419295745,1775124645216,-500.0,0.00014473,2]
[419295746,1775124645226,-500.0,0.00014473,2]
[419295747,1775124645236,-150.0,0.00014473,2]
[419295748,1775124645246,-500.0,0.00014489,2]
[419295749,1775124645255,-150.0,0.00014507,2]
[419295750,1775124645265,-150.0,0.0001451,2]
[419295751,1775124645275,-150.0,0.0001451,2]
[419295752,1775124645286,-150.0,0.00014514,2]
[419295753,1775124645296,-500.0,0.0001452,2]
[419295754,1775124645306,-500.0,0.0001452,2]
[419295755,1775124645316,-500.0,0.0001452,2]
[419295756,1775124645328,-500.0,0.0001452,2]
[419295757,1775124645338,-500.0,0.0001452,2]
[419295758,1775124645347,-510.83599728,0.0001452,2]
[419295759,1775124645357,-500.0,0.0001452,2]
[419295760,1775124645366,-500.0,0.0001452,2]
[419295761,1775124645376,-500.0,0.0001452,2]
[419295762,1775124645386,-500.0,0.0001452,2]
[419295763,1775124645395,-150.0,0.00014528,2]
[419295764,1775124645404,-200.0,0.00014533,2]
[419295765,1775124645413,-150.0,0.00014545,2]
[419295766,1775124645423,-150.0,0.00014545,2]
[419295767,1775124645432,-150.0,0.00014566,2]
[419295768,1775124645442,-150.0,0.00014566,2]
[419295769,1775124645451,-150.0,0.00014571,2]
[419295770,1775124645460,-150.0,0.00014592,2]
[419295771,1775124645470,-150.0,0.000146,2]
[419295772,1775124645479,-150.0,0.00014613,2]
[419295773,1775124645490,-150.0,0.00014618,2]
[419295774,1775124645500,-150.0,0.00014621,2]
[419295775,1775124645509,-150.0,0.00014621,2]
[419295776,1775124645520,-177.460602,0.00014622,7]
[419295777,1775124645530,-150.0,0.00014629,2]
[419295778,1775124645539,-150.0,0.00014656,2]
[419295779,1775124645548,-150.0,0.00014676,2]
[419295780,1775124645557,-150.0,0.00014676,2]
[419295781,1775124645567,-150.0,0.00014686,2]
[419295782,1775124645581,-150.0,0.00014691,2]
[419295783,1775124645592,-150.0,0.00014691,2]
[419295784,1775124645602,-150.0,0.00014704,30]
[419295785,1775124645612,-500.0,0.00014707,2]
[419295786,1775124645622,-500.0,0.00014707,2]
[419295787,1775124645631,-500.0,0.00014707,2]
[419295788,1775124645640,-500.0,0.00014707,2]